bitfinex-derivatives/quotes_ETHF0:USTF0_20250824
["timestamp","ask_amount","ask_price","bid_price","bid_amount"]
[1756066076051,1.7722,4749.0,4746.8,31.5002]
[1756066076253,1.7722,4749.0,4746.9,2.70132425]
[1756066076560,1.7722,4749.0,4747.8,0.42131]
[1756066076757,1.7722,4749.0,4747.5,0.42134]
[1756066076954,1.7722,4749.0,4747.7,0.42131]
[1756066077157,3.2078,4748.4,4746.8,30.323]
[1756066077455,3.2078,4748.4,4747.1,0.42137]
[1756066077658,3.2078,4748.4,4747.4,0.42134]
[1756066077854,3.2078,4748.4,4747.3,0.42135]
[1756066078060,3.2078,4748.4,4747.2,0.42136]
[1756066078355,1.7722,4749.0,4748.1,0.42128]
[1756066078557,1.7722,4749.0,4747.3,2.76249854]
[1756066078759,1.7326,4748.8,4746.2,0.42145]
[1756066078957,2.782,4748.8,4746.3,3.62924]
[1756066079159,2.782,4748.8,4746.3,3.2078]
[1756066079355,2.8539,4749.9,4746.8,0.42139]
[1756066079563,3.2078,4750.0,4746.8,0.42139]
[1756066079564,3.2078,4750.0,4747.4,0.8416]
[1756066079762,1.0494,4749.7,4747.4,0.42135]
[1756066079964,1.7326,4749.6,4747.3,1.0973]
[1756066080160,1.7326,4749.6,4746.7,1.05353]
[1756066080365,1.7326,4749.6,4747.5,2.7461125]
[1756066080558,3.2078,4749.0,4745.3,3.2078]
[1756066080757,3.2078,4747.2,4744.8,3.2078]
[1756066080965,2.782,4746.8,4744.5,3.2078]
[1756066081166,2.1707,4746.4,4744.5,3.2078]
[1756066081466,1.1213,4747.6,4745.3,1.0973]
[1756066081660,3.2078,4747.2,4745.4,1.7146]
[1756066082167,1.1213,4747.6,4745.4,1.7146]
[1756066082471,3.2078,4747.2,4745.4,3.2078]
[1756066082669,3.2078,4746.7,4744.5,4.9224]
[1756066082866,3.2078,4747.2,4745.9,3.2078]
[1756066083166,3.2078,4747.2,4744.9,21.07842]
[1756066083167,3.9033,4746.9,4745.2,2.80002055]
[1756066083369,3.2078,4745.3,4743.9,33.5418]
[1756066083670,3.9033,4746.0,4743.9,33.5418]
[1756066083975,3.9033,4746.0,4743.9,34.3834]
[1756066084162,1.0494,4745.7,4744.0,3.2078]
[1756066084359,3.2078,4744.6,4742.6,0.8416]
[1756066084559,4.3291,4745.4,4743.7,3.2078]
[1756066084772,4.3291,4745.4,4744.2,3.2078]
[1756066085072,3.2078,4744.9,4744.2,3.2078]
[1756066085266,3.2078,4746.1,4744.7,3.2078]
[1756066085471,3.2078,4745.0,4742.3,1.3192]
[1756066085671,189.622,4752.0,4736.4,189.622]
[1756066085672,3.2078,4742.8,4739.6,3.2078]
[1756066085967,3.2078,4742.8,4737.8,0.42219]
[1756066085968,3.2078,4739.9,4737.8,2.73527292]
[1756066086267,30.339,4739.8,4735.7,1.0973]
[1756066086567,30.339,4739.7,4735.7,2.8119]
[1756066086774,30.347,4740.0,4736.9,0.42227]
[1756066086968,30.347,4742.0,4736.8,1.0973]
[1756066087168,0.03674838,4739.6,4739.0,1.0973]
[1756066087363,0.0368,4743.2,4739.2,2.8119]
[1756066087569,0.0368,4743.2,4739.9,0.99]
[1756066087869,0.0368,4743.2,4740.0,1.7146]
[1756066088072,0.0368,4743.2,4736.5,21.11563]
[1756066088073,0.0368,4743.2,4737.5,2.8119]
[1756066088364,30.347,4741.5,4738.2,2.68787739]
[1756066088567,30.347,4741.5,4736.1,2.72467739]
[1756066088568,24.492,4741.4,4736.1,2.72467739]
[1756066088767,30.347,4741.5,4735.5,1.0973]
[1756066088961,68.281,4741.5,4737.0,0.42226]
[1756066089167,30.347,4741.5,4737.3,1.0973]
[1756066089365,30.347,4741.5,4735.6,2.68945174]
[1756066089563,2.37420182,4741.4,4735.3,0.99]
[1756066089873,26.227,4741.3,4736.1,1.51964]
[1756066090172,26.227,4741.3,4734.2,2.7046]
[1756066090370,40.28592635,4741.2,4735.2,1.7146]
[1756066090564,30.347,4741.5,4736.4,2.7046]
[1756066090761,30.347,4741.5,4736.5,1.0973]
[1756066090963,24.325,4741.4,4735.5,0.99]
[1756066091165,24.325,4741.4,4734.3,1.7146]
[1756066091365,30.368,4739.2,4731.3,1.0973]
[1756066091562,24.79133233,4739.1,4732.2,1.0973]
[1756066091775,0.45033233,4739.0,4732.2,1.0973]
[1756066091966,30.368,4737.1,4731.9,1.7146]
[1756066092372,2.3978814,4737.0,4730.2,1.0973]
[1756066092574,26.263,4736.9,4730.2,1.0973]
[1756066092777,30.368,4735.1,4728.3,0.99]
[1756066092976,30.368,4735.1,4728.0,1.0973]
[1756066093277,30.33121128,4735.1,4728.2,0.99]
[1756066093577,30.33121128,4735.1,4729.5,0.42293]
[1756066093776,24.312,4735.0,4730.3,2.0873]
[1756066094076,24.312,4735.0,4729.3,0.99]
[1756066094277,37.981,4734.9,4729.7,1.0973]
[1756066094471,30.33121128,4735.1,4730.7,0.42283]
[1756066094669,30.33121128,4735.1,4730.8,2.0873]
[1756066094978,30.33121128,4735.1,4731.1,1.0973]
[1756066095177,30.33121128,4735.1,4730.1,2.8119]
[1756066095381,30.33121128,4735.1,4730.5,0.42285]
[1756066095573,30.33121128,4735.1,4730.7,1.0973]
[1756066095774,30.33121128,4735.1,4730.5,0.42285]
[1756066095775,30.33121128,4735.1,4731.0,1.0973]
[1756066095979,54.64321128,4735.1,4731.0,1.0973]
[1756066096173,30.406,4736.4,4733.3,3.8019]
[1756066096380,30.406,4736.3,4733.3,3.8019]
[1756066096574,0.1,4740.2,4733.6,0.99]
[1756066096882,0.1,4740.2,4734.7,1.7146]
[1756066097079,0.1,4740.2,4736.1,1.0973]
[1756066097278,30.406,4739.8,4734.9,2.8119]
[1756066097480,30.406,4739.8,4734.9,1.0973]
[1756066097679,30.406,4739.8,4733.9,1.7146]
[1756066097680,38.008,4739.7,4733.9,1.7146]
[1756066097878,38.008,4739.6,4734.4,0.42251]
[1756066098177,38.008,4739.6,4735.1,2.8119]
[1756066098380,30.406,4737.1,4733.9,2.68455138]
[1756066098578,30.412,4735.1,4731.1,1.0973]
[1756066098772,30.412,4735.1,4729.3,1.7146]
[1756066098974,30.412,4732.9,4728.9,1.0973]
[1756066099181,30.412,4732.9,4729.0,1.7146]
[1756066099377,30.412,4734.3,4728.8,21.1508]
[1756066099576,4.99671305,4736.9,4728.8,21.1508]
[1756066099577,30.412,4735.4,4729.5,1.05738]
[1756066099777,30.412,4735.7,4730.3,21.14427]
[1756066099977,30.412,4735.7,4729.8,1.0573]
[1756066099978,30.412,4735.7,4732.5,1.0973]
[1756066100287,30.412,4735.7,4731.1,21.14041]
[1756066100482,30.412,4739.1,4734.0,0.99]
[1756066100676,24.457,4739.0,4734.3,1.7146]
[1756066100881,30.412,4739.1,4734.5,1.0973]
[1756066101181,24.457,4739.0,4734.5,1.0973]
[1756066101387,38.016,4738.9,4734.5,1.0973]
[1756066101678,30.412,4739.1,4733.2,0.99]
[1756066101679,68.428,4739.1,4733.2,0.99]
[1756066101882,68.428,4739.1,4735.4,0.42242]
[1756066102083,1.0971,4738.8,4733.8,2.74154152]
[1756066102276,1.0971,4737.0,4732.0,0.99]
[1756066102479,30.42,4737.1,4732.0,0.99]
[1756066102787,1.7146,4736.4,4732.0,0.99]
[1756066102985,1.7146,4736.2,4732.0,0.99]
[1756066103288,1.7146,4737.0,4732.2,0.99]
[1756066103485,30.42,4737.9,4732.4,0.99]
[1756066103680,1.0971,4737.4,4732.4,0.99]
[1756066103878,1.0971,4737.4,4732.5,2.68357096]
[1756066103879,0.03677683,4735.9,4732.5,2.68357096]
[1756066104185,1.0971,4737.4,4732.7,1.7146]
[1756066104383,1.0971,4737.4,4733.2,1.7146]
[1756066104582,1.7146,4737.6,4733.0,1.7146]
[1756066104784,1.7146,4737.6,4733.6,2.7046]
[1756066104984,1.0971,4737.5,4733.8,3.8019]
[1756066105177,1.0971,4737.5,4733.2,3.8019]
[1756066105385,3.2078,4735.9,4733.9,2.75994744]
[1756066105582,30.42,4737.9,4734.4,0.99]
[1756066105886,1.7326,4737.7,4735.2,0.99]
[1756066106088,3.2078,4737.5,4736.4,0.42234]
[1756066106387,3.2078,4737.5,4735.2,0.99]
[1756066106388,1.1213,4738.8,4735.4,0.99]
[1756066106576,1.1213,4738.8,4735.3,2.79567459]
[1756066106577,1.1213,4738.8,4735.8,0.99]
[1756066106778,2.8539,4738.8,4735.8,0.99]
[1756066107286,1.1213,4738.8,4736.3,0.42235]
[1756066107484,1.7326,4740.8,4735.9,2.80095583]
[1756066107686,3.2078,4741.5,4739.9,1.0379]
[1756066107885,2.9291,4742.4,4739.9,1.0347]
[1756066108085,0.03674365,4740.7,4739.9,1.0347]
[1756066108287,0.03674365,4740.7,4739.0,0.0032]
[1756066108288,1.1537,4741.3,4738.8,1.0347]
[1756066108492,4.2063,4742.5,4739.8,0.42203]
[1756066108687,3.2078,4742.5,4740.0,1.0347]
[1756066108881,3.2078,4742.5,4739.9,0.0032]
[1756066108882,3.2078,4744.0,4740.9,3.2078]
[1756066109187,0.03671825,4743.3,4741.6,3.2078]
[1756066109587,0.03671825,4743.3,4742.0,0.42184]
[1756066109785,0.03671825,4743.3,4741.0,2.80329116]
[1756066109786,1.1537,4744.8,4741.9,3.2078]
[1756066110091,4.3615,4745.8,4743.4,0.42171]
[1756066110286,4.3615,4745.8,4743.0,0.42175]
[1756066110487,0.03670462,4745.3,4741.2,3.2078]
[1756066110786,1.1537,4744.9,4741.3,3.79856349]
[1756066110992,0.03670462,4745.3,4741.3,2.74380349]
[1756066111182,0.03670462,4745.3,4742.4,0.4218]
[1756066111183,1.1537,4745.2,4742.4,0.4218]
[1756066111383,1.1537,4745.2,4742.6,0.0009]
[1756066111583,1.1537,4745.2,4742.9,0.0008]
[1756066111994,3.9276,4745.0,4742.3,0.0009]
[1756066112489,1.1537,4744.7,4742.3,0.0009]
[1756066112687,0.03670462,4745.3,4741.2,3.2078]
[1756066112886,1.7754,4743.6,4740.7,0.42195]
[1756066113091,2.9291,4744.7,4741.7,0.0009]
[1756066113284,2.9291,4744.7,4742.2,0.42182]
[1756066113492,2.9291,4744.7,4742.7,0.42177]
[1756066113686,1.1537,4744.7,4743.7,0.42168]
[1756066113891,0.03670462,4745.3,4743.7,0.0008]
[1756066114086,0.03670462,4745.3,4742.8,2.70577904]
[1756066114087,1.1537,4745.2,4742.7,0.0017]
[1756066114590,1.1537,4745.2,4743.4,0.42171]
[1756066114591,1.7754,4745.1,4743.4,0.42171]
[1756066114791,1.7754,4745.1,4742.7,0.0017]
[1756066115094,2.1522,4745.0,4743.3,3.2078]
[1756066115293,0.03670462,4745.3,4743.5,21.08543]
[1756066115594,0.03670462,4745.3,4744.6,0.42161]
[1756066115790,0.03670462,4745.3,4743.6,0.0008]
[1756066116095,2.9291,4745.0,4743.3,3.2078]
[1756066116288,0.03670462,4745.3,4742.2,3.2078]
[1756066116289,2.9291,4744.6,4742.2,3.2078]
[1756066116686,2.9291,4744.6,4742.3,0.0008]
[1756066116885,1.1537,4744.5,4742.4,0.0009]
[1756066117086,1.1537,4744.3,4742.2,3.2078]
[1756066117291,1.1537,4744.3,4742.3,0.0009]
[1756066117493,1.1537,4744.3,4742.2,3.2078]
[1756066117790,2.1522,4744.1,4742.2,3.2078]
[1756066118098,1.1537,4744.1,4742.5,0.42179]
[1756066118292,2.1522,4744.1,4742.7,0.42178]
[1756066118492,1.1537,4744.1,4742.3,0.0008]
[1756066118700,30.402,4744.9,4743.0,3.2078]
[1756066118900,2.7739,4744.5,4742.6,3.2078]
[1756066119091,0.9985,4744.1,4742.6,3.2078]
[1756066119292,2.9291,4744.0,4742.6,3.2078]
[1756066119593,0.9985,4744.8,4743.2,0.0008]
[1756066119894,1.1537,4745.2,4742.7,0.0009]
[1756066120093,1.1537,4745.0,4742.7,0.0009]
[1756066120296,0.9985,4744.4,4741.8,3.2078]
[1756066120596,3.9276,4744.2,4740.2,0.0008]
[1756066120796,59.552,4744.3,4740.2,0.0008]
[1756066120992,37.986,4744.2,4740.2,0.0008]
[1756066121299,3.9276,4744.0,4740.2,0.0008]
[1756066121490,3.9276,4744.2,4740.2,0.0008]
[1756066121689,3.9276,4743.8,4740.6,0.0013]
[1756066121896,37.986,4743.9,4740.6,0.0013]
[1756066121897,1.1537,4743.2,4740.7,0.0017]
[1756066122099,3.9276,4742.7,4739.7,3.2078]
[1756066122294,3.9276,4742.7,4738.6,0.0013]
[1756066122295,3.2078,4743.7,4738.6,3.2091]
[1756066122506,3.2078,4743.7,4738.6,3.2078]
[1756066122507,2.9291,4743.4,4738.6,3.2078]
[1756066122799,0.9985,4743.6,4737.0,3.2078]
[1756066122800,3.2078,4741.0,4737.0,3.2078]
[1756066123004,1.1537,4740.7,4737.0,3.2078]
[1756066123201,33.5968,4740.4,4735.8,3.2078]
[1756066123504,3.9276,4740.3,4735.8,3.2078]
[1756066123699,1.1537,4740.0,4736.1,0.0017]
[1756066123900,1.1537,4740.0,4735.9,2.67884743]
[1756066123901,0.9985,4739.7,4736.3,0.0017]
[1756066124101,0.9985,4739.3,4736.3,0.0017]
[1756066124299,2.1522,4738.9,4736.3,0.0017]
[1756066124501,2.1522,4738.5,4735.8,3.2078]
[1756066124802,1.1537,4738.4,4735.8,3.2078]
[1756066125304,1.1537,4737.9,4735.8,3.2078]
[1756066125700,1.1537,4737.9,4736.0,0.0008]
[1756066126100,30.389,4738.4,4736.1,0.0009]
[1756066126296,1.1537,4738.9,4736.3,0.0009]
[1756066126498,1.1537,4738.9,4736.5,0.0009]
[1756066126999,1.1537,4738.9,4736.7,0.0022]
[1756066127200,1.7754,4739.8,4736.8,0.0017]
[1756066127504,1.7754,4739.8,4736.9,0.0017]
[1756066127692,1.7754,4739.8,4736.9,0.0008]
[1756066127894,1.1537,4739.7,4737.0,2.73094807]
[1756066128096,1.1537,4739.4,4737.0,0.0009]
[1756066128702,1.1537,4739.4,4727.5,2.58962811]
[1756066128703,2.7739,4739.0,4735.9,0.0017]
[1756066128904,1.7754,4738.7,4736.1,0.0008]
[1756066129095,1.1537,4738.6,4736.2,0.0009]
[1756066129702,1.1537,4738.6,4736.4,0.0009]
[1756066129900,30.398,4740.0,4735.8,3.2091]
[1756066129901,2.9291,4738.2,4735.8,3.2078]
[1756066130103,2.9291,4738.2,4736.0,0.0009]
[1756066131106,1.1537,4737.7,4735.8,3.2078]
[1756066131896,2.7739,4737.6,4735.8,3.2078]
[1756066132101,2.1522,4737.7,4735.8,3.2078]
[1756066132400,1.7754,4736.7,4735.2,3.2078]
[1756066132606,3.2078,4735.8,4734.1,0.09716633]
[1756066132904,2.9291,4735.6,4734.1,0.09716633]
[1756066133307,3.9276,4735.2,4732.7,3.2078]
[1756066133498,1.7754,4734.4,4732.7,3.2078]
[1756066133699,2.1522,4733.7,4731.6,3.2078]
[1756066133905,1.7754,4733.5,4731.6,3.2078]
[1756066134108,1.7754,4733.5,4732.1,3.2078]
[1756066134411,32.5562,4733.6,4728.8,2.15180703]
[1756066134412,3.2078,4732.3,4728.8,2.15180703]
[1756066134708,3.2078,4731.2,4728.8,1.7252]
[1756066134911,6.1369,4730.7,4729.2,3.2078]
[1756066135209,3.2078,4730.2,4729.2,3.2078]
[1756066135409,3.2078,4731.6,4729.1,1.7261]
[1756066135609,3.2078,4731.6,4729.9,0.0009]
[1756066135813,3.2078,4731.6,4730.0,1.7252]
[1756066136208,3.2078,4731.6,4730.3,1.126]
[1756066136504,0.9985,4735.5,4731.5,0.098]
[1756066136709,1.1537,4735.3,4735.0,3.2078]
[1756066136913,1.7754,4736.7,4732.6,1.0347]
[1756066137109,0.9985,4736.1,4733.2,3.2078]
[1756066137307,1.1537,4735.8,4733.1,1.7252]
[1756066137606,0.9922,4735.3,4732.0,1.7252]
[1756066137813,1.0857,4733.2,4730.4,3.2078]
[1756066138002,30.415,4733.1,4730.4,0.9749]
[1756066138207,1.0857,4733.0,4730.4,0.9749]
[1756066138516,1.0857,4732.9,4730.4,0.9749]
[1756066138706,7.5013,4732.9,4730.4,0.9749]
[1756066138906,1.0857,4732.7,4730.0,1.8641]
[1756066139209,1.0857,4732.7,4729.5,0.9749]
[1756066139609,1.0857,4732.5,4729.6,1.8641]
[1756066139803,1.0857,4732.5,4729.6,2.71053679]
[1756066140002,1.0857,4732.5,4728.4,0.9749]
[1756066140003,1.0857,4731.2,4728.4,0.9749]
[1756066140311,3.2078,4731.8,4729.9,3.2078]
[1756066140507,6.4156,4731.7,4729.5,2.839]
[1756066140912,1.0857,4731.5,4729.5,1.8641]
[1756066141108,3.2078,4731.8,4730.0,1.1555]
[1756066141308,3.2078,4732.7,4730.5,0.9749]
[1756066141507,1.0857,4732.6,4730.6,1.8641]
[1756066141711,1.0857,4732.5,4729.6,2.839]
[1756066142014,1.0857,4731.7,4728.3,1.8641]
[1756066142311,1.0857,4730.8,4728.3,1.8641]
[1756066142516,1.0857,4730.7,4728.9,3.2078]
[1756066142818,1.0857,4730.3,4727.5,0.58214061]
[1756066143003,3.2078,4730.3,4727.5,0.58214061]
[1756066143205,1.0857,4730.2,4726.6,1.8641]
[1756066143415,1.0857,4730.2,4726.7,0.9749]
[1756066143615,1.0857,4730.2,4725.8,1.8641]
[1756066143814,1.0857,4730.2,4724.9,1.8641]
[1756066144016,1.0857,4730.2,4725.1,0.9749]
[1756066144213,1.0857,4730.2,4725.4,3.0196]
[1756066144516,1.0857,4730.1,4725.1,3.9945]
[1756066144828,1.0857,4725.6,4718.1,1.1555]
[1756066145017,0.8697,4725.4,4718.3,0.9749]
[1756066145312,0.8697,4725.2,4718.6,1.1555]
[1756066145622,0.8697,4724.7,4719.9,0.03685371]
[1756066145817,0.8697,4724.7,4719.7,0.9749]
[1756066146012,0.8697,4723.3,4718.4,1.1555]
[1756066146217,2.36462999,4724.6,4718.0,0.09546754]
[1756066146218,0.8697,4721.0,4718.0,0.09546754]
[1756066146421,30.444,4718.9,4713.4,1.1555]
[1756066146715,30.444,4718.9,4718.5,2.74661165]
[1756066146917,68.499,4718.9,4714.5,0.03688676]
[1756066147105,68.499,4718.9,4714.3,1.8641]
[1756066147306,68.499,4718.9,4714.5,2.1304]
[1756066147708,0.03691381,4718.7,4715.0,0.9749]
[1756066147917,0.03691381,4718.7,4715.2,0.9749]
[1756066148107,20.402,4719.9,4715.6,0.9749]
[1756066148309,0.03692135,4717.9,4714.4,0.9749]
[1756066148511,1.27,4717.8,4714.6,0.9749]
[1756066148711,1.2701,4717.7,4710.6,0.001]
[1756066148912,0.635,4718.2,4714.2,6.4156]
[1756066149119,30.47,4718.8,4714.2,6.4156]
[1756066149120,0.8468,4718.5,4714.2,6.4156]
[1756066149311,2.1168,4718.6,4712.1,0.03691387]
[1756066149517,1.27,4717.9,4710.6,0.001]
[1756066149817,2.22315588,4718.7,4710.6,0.001]
[1756066149818,0.8468,4718.0,4712.7,0.30880298]
[1756066150017,1.0857,4717.5,4712.7,0.30880298]
[1756066150314,0.635,4717.7,4711.9,1.8641]
[1756066150315,0.8468,4717.7,4711.9,1.8641]
[1756066150519,2.80607499,4718.6,4712.4,1.8641]
[1756066150712,0.03691661,4718.7,4712.4,1.8641]
[1756066150912,1.0857,4718.4,4712.6,0.9749]
[1756066151113,30.494,4718.3,4712.9,1.8641]
[1756066151314,1.0857,4717.7,4712.9,1.8641]
[1756066151511,1.0857,4717.5,4713.2,0.9749]
[1756066151711,0.8468,4718.0,4713.7,1.8641]
[1756066151917,0.8468,4719.0,4714.1,1.8641]
[1756066152117,0.8468,4719.0,4712.7,30.494]
[1756066152118,0.03692433,4717.2,4714.6,0.9749]
[1756066152315,0.1,4720.2,4712.9,0.9749]
[1756066152519,30.494,4722.4,4713.1,0.9749]
[1756066152721,1.0857,4722.7,4713.1,0.9749]
[1756066152722,30.515,4722.7,4713.1,0.9749]
[1756066153023,1.0857,4722.4,4713.3,0.9749]
[1756066153320,30.515,4722.7,4713.3,0.9749]
[1756066153321,30.515,4722.3,4713.3,0.9749]
[1756066153518,30.515,4722.3,4713.5,0.9749]
[1756066153519,1.8752,4721.8,4713.5,0.9749]
[1756066153713,1.9325,4721.6,4713.5,0.9749]
[1756066153923,1.9325,4721.6,4702.2,2.58962811]
[1756066153924,1.0857,4720.4,4713.7,0.9749]
[1756066154114,2.9609,4720.5,4714.1,0.09757857]
[1756066154315,2.722,4720.5,4714.2,0.9749]
[1756066154619,26.641,4720.4,4714.4,0.9749]
[1756066154823,26.641,4720.4,4714.3,1.1555]
[1756066154824,0.8468,4719.7,4714.6,1.8641]
[1756066155017,3.2078,4717.4,4714.8,0.9749]
[1756066155221,3.2078,4719.0,4716.2,0.5594]
[1756066155419,3.2078,4719.0,4716.1,3.2078]
[1756066155420,1.0857,4723.4,4716.3,217.944]
[1756066155622,0.9922,4723.7,4716.3,217.944]
[1756066155623,1.8752,4723.1,4716.3,193.51534533]
[1756066155821,2.0779,4723.3,4716.3,228.862]
[1756066156018,0.9922,4723.1,4714.1,0.09757857]
[1756066156226,1.0857,4722.6,4716.4,2.73292476]
[1756066156517,0.14674759,4725.4,4714.2,68.677]
[1756066156518,1.0857,4725.3,4716.5,30.523]
[1756066156721,2.0779,4724.9,4716.6,38.154]
[1756066157017,1.8752,4724.8,4716.6,38.154]
[1756066157323,0.9922,4724.6,4716.7,2.72887744]
[1756066157522,1.0857,4724.4,4716.7,2.72887744]
[1756066157722,1.0857,4724.2,4716.7,2.72887744]
[1756066157924,1.0857,4725.1,4717.8,30.523]
[1756066158125,0.15131108,4726.6,4716.8,4.56817824]
[1756066158126,1.0857,4726.2,4719.7,30.523]
[1756066158320,2.8752,4727.5,4719.8,24.466]
[1756066158527,1.0857,4727.3,4719.8,27.26120756]
[1756066158721,1.0857,4727.1,4719.8,2.79520756]
[1756066158924,2.0779,4726.7,4719.9,30.523]
[1756066159122,1.8752,4726.9,4719.9,30.523]
[1756066159319,30.523,4727.2,4720.0,2.79588513]
[1756066159624,1.0,4727.5,4720.0,2.79588513]
[1756066159625,1.0,4727.5,4722.2,30.518]
[1756066160026,1.0,4727.5,4722.3,2.74043876]
[1756066160226,1.0,4727.5,4722.4,26.658]
[1756066160727,1.0,4727.5,4722.5,2.74043876]
[1756066160922,1.0,4727.5,4722.5,6.74043876]
[1756066161230,1.0,4727.5,4724.0,30.518]
[1756066161425,1.0857,4731.1,4724.1,190.739]
[1756066161624,0.14617741,4732.0,4726.3,30.518]
[1756066161819,0.14617741,4732.0,4726.4,27.673]
[1756066162030,0.9922,4733.0,4726.4,30.59866773]
[1756066162236,1.0857,4732.6,4726.5,4.0]
[1756066162421,1.0857,4732.6,4726.4,26.59866773]
[1756066162624,1.0857,4732.6,4726.6,2.77603367]
[1756066162824,3.9531,4730.0,4726.5,2.77603367]
[1756066163125,2.9609,4730.0,4726.7,2.7754737]
[1756066163328,0.99365428,4729.9,4726.7,2.7754737]
[1756066163524,0.99365428,4729.9,4726.3,26.433]
[1756066163740,0.99365428,4729.8,4726.8,2.7754737]
[1756066164034,0.99365428,4730.1,4728.5,3.2078]
[1756066164234,0.9922,4731.8,4726.3,26.433]
[1756066164235,0.9922,4731.8,4729.0,3.2078]
[1756066164436,2.9609,4732.1,4729.1,30.503]
[1756066164634,0.99365428,4730.1,4729.1,30.503]
[1756066164828,0.99365428,4730.1,4729.2,2.71928969]
[1756066165033,0.99365428,4730.0,4729.2,2.71928969]
[1756066165335,2.9609,4732.3,4729.2,2.80064434]
[1756066165535,2.9609,4732.3,4729.2,6.00844434]
[1756066165746,3.2078,4733.5,4729.2,6.00844434]
[1756066166033,0.99365428,4734.0,4731.2,3.2078]
[1756066166242,0.99365428,4733.9,4731.3,59.755]
[1756066166438,0.90703795,4734.1,4732.3,3.2078]
[1756066166634,0.46056481,4734.1,4732.8,3.2078]
[1756066166829,1.0857,4737.7,4732.8,3.2078]
[1756066167035,1.98585428,4737.4,4734.7,3.2078]
[1756066167239,0.99365428,4737.4,4734.7,3.2078]
[1756066167436,0.99365428,4737.3,4735.2,3.2078]
[1756066167636,0.99365428,4737.4,4735.3,0.0098]
[1756066168040,0.99365428,4737.3,4735.3,2.80894758]
[1756066168236,1.9695,4737.5,4732.9,38.113]
[1756066168237,2.0764,4737.1,4734.1,0.0044]
[1756066168442,1.1069,4736.9,4734.1,0.0044]
[1756066168640,2.9054,4735.9,4734.2,1.70498747]
[1756066168843,3.2078,4734.6,4732.0,3.2078]
[1756066169138,3.2078,4733.1,4730.9,1.8459]
[1756066169336,3.2078,4734.4,4731.0,30.471]
[1756066169543,3.2078,4734.1,4731.4,5.0537]
[1756066169738,3.2078,4735.0,4732.2,3.2078]
[1756066169941,1.1069,4735.0,4732.5,1.0512]
[1756066170136,1.7985,4735.9,4732.9,1.0512]
[1756066170342,1.1069,4736.1,4733.3,0.0034]
[1756066170536,1.1069,4738.4,4733.8,1.0512]
[1756066170839,2.0764,4737.4,4734.4,1.8459]
[1756066171042,2.768,4737.3,4734.5,30.471]
[1756066171238,2.0764,4737.3,4733.9,2.7048029]
[1756066171447,2.0764,4737.3,4733.4,1.8459]
[1756066171448,3.8749,4737.1,4732.7,30.458]
[1756066171743,30.458,4738.9,4732.8,57.198]
[1756066171945,0.9695,4737.0,4733.5,1.5223029]
[1756066172140,3.8749,4737.4,4731.8,1.0512]
[1756066172342,7.113,4738.8,4732.0,2.9979]
[1756066172533,0.9695,4737.4,4733.6,2.74452342]
[1756066172740,0.9695,4737.4,4731.7,30.458]
[1756066172741,3.499,4738.5,4731.8,2.74452342]
[1756066172942,1.1069,4737.0,4731.8,2.74452342]
[1756066173243,1.7985,4736.2,4731.5,1.8459]
[1756066173443,30.458,4736.6,4731.5,4.57294119]
[1756066173643,30.458,4736.6,4731.5,2.72704119]
[1756066173840,1.1069,4736.5,4731.1,30.458]
[1756066174043,3.2078,4734.5,4731.0,3.2078]
[1756066174251,3.2078,4734.5,4730.4,1.8459]
[1756066174446,0.9695,4734.1,4731.1,2.76313916]
[1756066174645,0.9695,4733.7,4731.7,3.2078]
[1756066174850,1.1069,4733.4,4730.4,1.0512]
[1756066175040,1.1069,4733.4,4730.7,6.2057]
[1756066175240,1.1069,4733.0,4729.3,3.2078]
[1756066175544,1.1069,4733.0,4723.7,190.309]
[1756066175545,1.1069,4728.9,4725.7,3.2078]
[1756066175751,3.2078,4727.4,4725.8,1.8459]
[1756066175945,3.2078,4728.3,4726.5,3.2078]
[1756066176144,3.2078,4727.6,4726.1,1.152]
[1756066176339,4.1773,4728.7,4727.0,3.2078]
[1756066176547,1.6581,4730.0,4728.3,3.2078]
[1756066176748,3.2078,4730.9,4728.5,4.0491]
[1756066176944,30.449,4734.0,4728.0,38.061]
[1756066176945,3.2078,4732.2,4729.9,1.0512]
[1756066177147,3.2078,4733.2,4730.3,1.152]
[1756066177446,3.2078,4733.8,4732.7,1.8459]
[1756066177652,1.1069,4734.4,4732.7,1.8459]
[1756066177851,3.2078,4733.7,4732.5,30.453]
[1756066178249,3.2078,4734.6,4733.0,1.0512]
[1756066178460,3.2078,4734.5,4733.2,4.0491]
[1756066178749,3.2078,4734.5,4732.6,40.84232545]
[1756066178750,3.2078,4735.9,4734.4,3.2078]
[1756066178943,1.6581,4735.8,4733.3,2.77532545]
[1756066179139,5.2842,4734.7,4732.9,1.8459]
[1756066179343,3.2078,4735.2,4733.2,2.72502995]
[1756066179545,3.2078,4736.3,4733.1,2.72502995]
[1756066179747,0.9695,4738.0,4736.1,3.2078]
[1756066180046,0.9695,4738.0,4735.9,0.0044]
[1756066180047,0.9695,4738.0,4736.6,3.2078]
[1756066180240,1.1069,4738.4,4736.1,3.2078]
[1756066180444,1.1069,4738.4,4737.1,3.2078]
[1756066180746,3.2078,4739.2,4737.4,3.0023]
[1756066180948,3.2078,4739.2,4738.4,3.2078]
[1756066181149,1.7985,4738.9,4736.6,3.2078]